fUST/lending_fUST_20250702
["ID","MTS","AMOUNT","RATE_DAILY","PERIOD"]
[369078095,1751459444650,-210.49852449,0.00019178,2]
[369078098,1751459444663,-466.22057489,0.00019178,2]
[369078233,1751459445973,-854.72090062,0.00019178,2]
[369078235,1751459445983,-469.9,0.00019178,2]
[369078237,1751459445992,-731.01,0.00019178,2]
[369078239,1751459446001,-460.0,0.00019178,2]
[369078241,1751459446011,-2352.99540138,0.00019178,2]
[369078243,1751459446023,-141.28459862,0.00019178,2]
[369078245,1751459446032,-460.0,0.00019178,2]
[369078247,1751459446042,-460.0,0.00019178,2]
[369078249,1751459446051,-460.0,0.00019178,2]
[369078251,1751459446060,-250.63032136,0.00019178,2]
[369078253,1751459446071,-209.36967864,0.00019178,2]
[369078255,1751459446080,-228.63945414,0.00019178,2]
[369078257,1751459446090,-460.0,0.00019178,2]
[369078259,1751459446100,-460.0,0.00019178,2]
[369078261,1751459446110,-460.0,0.00019178,2]
[369078263,1751459446119,-500.0,0.00019178,2]
[369078265,1751459446128,-38.24223922,0.00019178,2]
[369078291,1751459446444,-0.02597207,0.00019178,2]
[369081042,1751459524339,291.873402,0.00013699,2]
[369081043,1751459619022,976.51,0.000161,2]
[369081044,1751459858619,349.676527,0.00027397,120]
[369081045,1751460521513,289.687647,0.00013699,2]
[369081046,1751460591462,1266.9,0.00027397,120]
[369081099,1751460638126,-247.73023997,0.00017046,2]
[369081100,1751460638136,-300.0,0.00017146,2]
[369081101,1751460638145,-300.0,0.00017146,2]
[369081102,1751460638156,-300.0,0.00017146,2]
[369081103,1751460638165,-300.0,0.00017146,2]
[369081104,1751460638176,-1200.0,0.00017146,2]
[369081105,1751460638185,-2957.65574851,0.00017147,2]
[369081106,1751460638199,-19643.89098744,0.00017147,2]
[369081108,1751460638210,-325.26,0.00017147,2]
[369081116,1751460643202,-500.0,0.00017146,2]
[369081117,1751460643213,-500.0,0.00017146,2]
[369081118,1751460643223,-500.0,0.00017146,2]
[369081119,1751460643233,-500.0,0.00017146,2]
[369081120,1751460643242,-500.0,0.00017146,2]
[369081121,1751460643251,-500.0,0.00017146,2]
[369081122,1751460643260,-500.0,0.00017146,2]
[369081123,1751460643270,-500.0,0.00017146,2]
[369081124,1751460643280,-500.0,0.00017146,2]
[369081125,1751460643289,-500.0,0.00017146,2]
[369081126,1751460643299,-500.0,0.00017146,2]
[369081127,1751460643308,-392.09729623,0.00017146,2]
[369081128,1751460643317,-474.94218015,0.00017146,2]
[369081129,1751460643329,-25.05781985,0.00017146,2]
[369081130,1751460643338,-500.0,0.00017146,2]
[369081131,1751460643347,-291.93090598,0.00017146,2]
[369081132,1751460643356,-500.0,0.00017146,2]
[369081133,1751460643365,-500.0,0.00017146,2]
[369081135,1751460643375,-500.0,0.00017146,2]
[369081137,1751460643385,-1973.19326405,0.00017147,2]
[369081138,1751460643395,-245.38,0.00018139,2]
[369081139,1751460643404,-207.4,0.00018142,2]
[369081140,1751460643414,-1200.0,0.00018145,2]
[369081141,1751460643424,-295.0,0.00018145,2]
[369081142,1751460643433,-296.44309432,0.00018463,2]
[369081143,1751460643443,-180.54147527,0.00018593,2]
[369081144,1751460643452,-500.0,0.00018593,2]
[369081145,1751460643461,-213.90888375,0.00018594,2]
[369081146,1751460643470,-160.0,0.00018594,2]
[369081147,1751460643479,-160.0,0.00018594,2]
[369081148,1751460643489,-215.04179405,0.00018594,2]
[369081149,1751460643498,-847.65867985,0.00018594,2]
[369081150,1751460643507,-12573.65100011,0.00018594,2]
[369081151,1751460643517,-230.34465076,0.00018594,2]
[369081152,1751460643526,-176.3283935,0.00018624,2]
[369081153,1751460643535,-420.0,0.00018724,2]
[369081154,1751460643545,-160.0,0.00018821,2]
[369081155,1751460643554,-160.0,0.00018832,2]
[369081156,1751460643564,-837.27862799,0.00018832,2]
[369081157,1751460643573,-176.3283935,0.00018851,2]
[369081158,1751460643582,-366.4191338,0.000189,2]
[369081159,1751460643592,-153.0,0.000189,2]
[369081160,1751460643602,-306.0,0.00019,2]
[369081161,1751460643611,-153.0,0.00019,2]
[369081162,1751460643621,-44.11926423,0.00019,2]
[369081163,1751460645402,-322.29986957,0.00019,2]
[369081164,1751460645412,-366.4191338,0.00019,2]
[369081165,1751460645422,-153.0,0.00019,2]
[369081166,1751460645431,-366.4191338,0.00019,2]
[369081167,1751460645441,-366.4191338,0.00019,2]
[369081168,1751460645450,-153.0,0.00019,2]
[369081169,1751460645459,-176.3283935,0.00019078,2]
[369081170,1751460645468,-300.0,0.00019166,2]
[369081171,1751460645478,-300.0,0.00019166,2]
[369081172,1751460645487,-300.0,0.00019166,2]
[369081173,1751460645497,-429.38131551,0.00019166,2]
[369081174,1751460645507,-21900.90264404,0.00019177,2]
[369081175,1751460646146,-11350.40323929,0.00019177,2]
[369081176,1751460822698,262.257395,0.00027397,120]
[369081177,1751460935045,1000.0,0.00024,60]
[369081178,1751461246317,-220.32248383,0.00016284,2]
[369081179,1751461249599,-105.30645269,0.00016284,2]
[369081180,1751461249622,-162.81446826,0.00016285,2]
[369081181,1751461750130,-300.0,0.00016491,2]
[369081182,1751461750327,-16469.81849971,0.00016492,2]
[369081183,1751461767139,-8430.18150029,0.00016492,2]
[369081184,1751461767160,-325.62893652,0.00016624,2]
[369081185,1751461767180,-162.81446826,0.00016626,2]
[369081186,1751461767200,-2681.19844231,0.00016921,2]
[369081187,1751461809316,286.990782,0.00013699,2]
[369081189,1751461829761,196.693046,0.00027397,120]
[369081213,1751461832477,-635.66391139,0.00017038,2]
[369081215,1751461832487,-300.0,0.00017136,2]
[369081217,1751461832496,-1200.0,0.00017136,2]
[369081219,1751461832506,-300.0,0.00017136,2]
[369081221,1751461832515,-300.0,0.00017136,2]
[369081223,1751461832525,-300.0,0.00017136,2]
[369081224,1751461832534,-8093.63599488,0.00017136,2]
[369081225,1751461832544,-160.0,0.00017141,2]
[369081226,1751461832554,-635.66391136,0.00018179,2]
[369081227,1751461832563,-2276.98383254,0.00018385,2]
[369081228,1751461832572,-500.0,0.00018594,2]
[369081229,1751461832582,-160.0,0.00018597,2]
[369081230,1751461832592,-160.0,0.00018597,2]
[369081231,1751461832602,-160.0,0.00018597,2]
[369081232,1751461832612,-215.04179405,0.00018597,2]
[369081233,1751461832621,-847.65867985,0.00018597,2]
[369081234,1751461832631,-12573.65100011,0.00018597,2]
[369081235,1751461832641,-230.34465076,0.00018597,2]
[369081236,1751461832650,-160.0,0.00018597,2]
[369081237,1751461832660,-160.0,0.00018597,2]
[369081238,1751461832670,-160.0,0.00018597,2]
[369081239,1751461832679,-837.27862799,0.00018597,2]
[369081240,1751461832688,-213.90888375,0.00018597,2]
[369081241,1751461832697,-160.0,0.00018597,2]
[369081242,1751461832707,-2276.98383254,0.00018644,2]
[369081243,1751461832716,-420.0,0.00018713,2]
[369081244,1751461832726,-207.4,0.00018777,2]
[369081245,1751461832736,-365.5882646,0.000188,2]
[369081246,1751461832746,-366.4191338,0.000188,2]
[369081247,1751461832755,-153.0,0.000189,2]
[369081248,1751461832765,-298.2890305,0.000189,2]
[369081249,1751461832774,-6551.53754686,0.000189,2]
[369081250,1751461832783,-500.0,0.00019039,2]
[369081251,1751461832793,-500.0,0.00019039,2]
[369081252,1751461832802,-223.59417693,0.00019039,2]
[369081253,1751461832812,-223.09116637,0.00019039,2]
[369081254,1751461832821,-500.0,0.00019039,2]
[369081255,1751461832830,-500.0,0.00019039,2]
[369081256,1751461832840,-2276.98383254,0.0001904,2]
[369081257,1751461832849,-81719.97296109,0.0001904,2]
[369081258,1751461833087,-500.0,0.00019039,2]
[369081259,1751461833097,-1110.55,0.0001904,2]
[369081260,1751461833118,-500.0,0.00019039,2]
[369081261,1751461833127,-2170.53180683,0.0001904,2]
[369081286,1751461838260,-500.0,0.00017136,2]
[369081288,1751461838270,-500.0,0.00017136,2]
[369081290,1751461838280,-500.0,0.00017136,2]
[369081292,1751461838289,-500.0,0.00017136,2]
[369081294,1751461838298,-500.0,0.00017136,2]
[369081297,1751461838308,-500.0,0.00017136,2]
[369081299,1751461838318,-500.0,0.00017136,2]
[369081301,1751461838327,-500.0,0.00017136,2]
[369081303,1751461838336,-500.0,0.00017136,2]
[369081305,1751461838345,-500.0,0.00017136,2]
[369081307,1751461838354,-500.0,0.00017136,2]
[369081308,1751461838363,-500.0,0.00017136,2]
[369081310,1751461838372,-500.0,0.00017136,2]
[369081313,1751461838382,-500.0,0.00017136,2]
[369081315,1751461838391,-500.0,0.00017136,2]
[369081317,1751461838400,-500.0,0.00017136,2]
[369081319,1751461838409,-500.0,0.00017136,2]
[369081321,1751461838419,-500.0,0.00017136,2]
[369081323,1751461838428,-339.39066762,0.00017136,2]
[369081325,1751461838437,-639.20972962,0.00017136,2]
[369081327,1751461838447,-500.0,0.00017136,2]
[369081329,1751461838456,-500.0,0.00017136,2]
[369081331,1751461838467,-500.0,0.00017136,2]
[369081333,1751461838476,-500.0,0.00017136,2]
[369081335,1751461838485,-500.0,0.00017136,2]
[369081337,1751461838495,-500.0,0.00017136,2]
[369081339,1751461838504,-500.0,0.00017136,2]
[369081341,1751461838513,-500.0,0.00017136,2]
[369081343,1751461838523,-500.0,0.00017136,2]
[369081345,1751461838532,-11222.98944928,0.0001904,2]
[369081348,1751461838553,-15772.5624628,0.0001904,2]
[369081350,1751461838562,-2226.3521091,0.00019041,2]
[369081352,1751461838572,-17211.82422341,0.00019041,2]
[369081354,1751461838581,-300.0,0.00019067,2]
[369081356,1751461838590,-808.58,0.00019068,3]
[369081358,1751461838600,-404.29,0.00019068,3]
[369081360,1751461838609,-202.15,0.00019068,3]
[369081362,1751461838619,-606.47,0.00019068,3]
[369081364,1751461838628,-1000.0,0.00019077,2]
[369081366,1751461838638,-840.0,0.00019077,2]
[369081368,1751461838647,-370000.0,0.00019078,2]
[369081370,1751461838657,-6551.53754679,0.00019141,2]
[369081372,1751461838667,-290.4,0.00019161,3]
[369081374,1751461838676,-500.0,0.00019173,2]
[369081377,1751461838686,-288.66192114,0.00019173,2]
[369081379,1751461838695,-501.53711033,0.00019173,2]
[369081381,1751461838705,-507.76383046,0.00019173,2]
[369081383,1751461838714,-181.09163339,0.00019173,2]
[369081385,1751461838724,-443.30882593,0.00019173,2]
[369081387,1751461838735,-500.0,0.00019173,2]
[369081389,1751461838745,-500.0,0.00019173,2]
[369081391,1751461838754,-334.67331402,0.00019173,2]
[369081393,1751461838764,-500.0,0.00019173,2]
[369081395,1751461838773,-512.10889782,0.00019173,2]
[369081397,1751461838783,-460.0,0.00019178,2]
[369081399,1751461838792,-460.0,0.00019178,2]
[369081401,1751461838801,-460.0,0.00019178,2]
[369081403,1751461838810,-460.0,0.00019178,2]
[369081405,1751461838819,-460.0,0.00019178,2]
[369081407,1751461838828,-458.03875855,0.00019178,2]
[369081409,1751461838837,-460.49459647,0.00019178,2]
[369081411,1751461838847,-192.89041772,0.00019178,2]
[369081413,1751461838856,-460.0,0.00019178,2]
[369081415,1751461838866,-460.0,0.00019178,2]
[369081417,1751461838878,-460.0,0.00019178,2]
[369081419,1751461838887,-460.0,0.00019178,2]
[369081421,1751461838897,-460.0,0.00019178,2]
[369081423,1751461838907,-460.0,0.00019178,2]
[369081425,1751461838916,-460.0,0.00019178,2]
[369081427,1751461838926,-460.0,0.00019178,2]
[369081429,1751461838935,-460.0,0.00019178,2]
[369081431,1751461838943,-460.0,0.00019178,2]
[369081433,1751461838954,-460.0,0.00019178,2]
[369081435,1751461838963,-460.0,0.00019178,2]
[369081437,1751461838972,-460.0,0.00019178,2]
[369081439,1751461838981,-460.0,0.00019178,2]
[369081441,1751461838990,-460.0,0.00019178,2]
[369081443,1751461839000,-500.0,0.00019178,2]
[369081445,1751461839009,-460.0,0.00019178,2]
[369081447,1751461839018,-460.0,0.00019178,2]
[369081449,1751461839028,-503.18270114,0.00019178,2]
[369081451,1751461839037,-460.0,0.00019178,2]
[369081453,1751461839047,-461.07781412,0.00019178,2]
[369081455,1751461839056,-460.0,0.00019178,2]
[369081457,1751461839066,-460.0,0.00019178,2]
[369081459,1751461839075,-460.0,0.00019178,2]
[369081461,1751461839085,-460.0,0.00019178,2]
[369081463,1751461839094,-460.0,0.00019178,2]
[369081465,1751461839103,-500.0,0.00019178,2]
[369081467,1751461839113,-460.0,0.00019178,2]
[369081469,1751461839121,-460.0,0.00019178,2]
[369081471,1751461839131,-460.0,0.00019178,2]
[369081473,1751461839139,-460.0,0.00019178,2]
[369081475,1751461839148,-460.0,0.00019178,2]
[369081477,1751461839157,-460.0,0.00019178,2]
[369081479,1751461839166,-460.0,0.00019178,2]
[369081481,1751461839175,-460.0,0.00019178,2]
[369081483,1751461839184,-460.0,0.00019178,2]
[369081485,1751461839193,-460.0,0.00019178,2]
[369081488,1751461839202,-460.0,0.00019178,2]
[369081490,1751461839212,-469.34,0.00019178,2]
[369081492,1751461839221,-460.0,0.00019178,2]
[369081493,1751461839231,-460.0,0.00019178,2]
[369081495,1751461839241,-488.65,0.00019178,2]
[369081498,1751461839251,-460.0,0.00019178,2]
[369081500,1751461839260,-460.0,0.00019178,2]
[369081502,1751461839268,-460.0,0.00019178,2]
[369081504,1751461839278,-460.0,0.00019178,2]
[369081506,1751461839287,-460.0,0.00019178,2]
[369081508,1751461839297,-460.0,0.00019178,2]
[369081510,1751461839307,-460.0,0.00019178,2]
[369081512,1751461839316,-460.0,0.00019178,2]
[369081514,1751461839326,-460.0,0.00019178,2]
[369081516,1751461839335,-217.22977328,0.00019178,2]
[369081518,1751461839345,-598.07720748,0.00019178,2]
[369081520,1751461839354,-460.0,0.00019178,2]
[369081522,1751461839363,-460.0,0.00019178,2]
[369081524,1751461839372,-460.0,0.00019178,2]
[369081526,1751461839382,-460.0,0.00019178,2]
[369081528,1751461839391,-462.45549875,0.00019178,2]
[369081530,1751461839400,-460.0,0.00019178,2]
[369081532,1751461839409,-460.0,0.00019178,2]
[369081534,1751461839418,-469.88910191,0.00019178,2]
[369081536,1751461839427,-697.8,0.00019178,2]
[369081538,1751461839437,-460.0,0.00019178,2]
[369081540,1751461839446,-460.0,0.00019178,2]
[369081542,1751461839455,-460.0,0.00019178,2]
[369081544,1751461839464,-460.0,0.00019178,2]
[369081546,1751461839474,-460.0,0.00019178,2]
[369081548,1751461839483,-433.08403681,0.00019178,2]
[369081550,1751461839494,-460.0,0.00019178,2]
[369081553,1751461839508,-399.67921954,0.00019178,2]
[369081555,1751461839522,-460.0,0.00019178,2]
[369081558,1751461839534,-460.0,0.00019178,2]
[369081560,1751461839547,-460.0,0.00019178,2]
[369081562,1751461839558,-460.0,0.00019178,2]
[369081564,1751461839569,-430.0,0.00019178,2]
[369081567,1751461839580,-460.0,0.00019178,2]
[369081569,1751461839592,-460.0,0.00019178,2]
[369081571,1751461839604,-460.0,0.00019178,2]
[369081574,1751461839615,-460.0,0.00019178,2]
[369081576,1751461839628,-460.0,0.00019178,2]
[369081578,1751461839639,-460.0,0.00019178,2]
[369081581,1751461839651,-460.0,0.00019178,2]
[369081583,1751461839663,-460.0,0.00019178,2]
[369081585,1751461839675,-435.8468742,0.00019178,2]
[369081588,1751461839689,-460.0,0.00019178,2]
[369081590,1751461839701,-477.12189403,0.00019178,2]
[369081592,1751461839713,-475.24,0.00019178,2]
[369081595,1751461839725,-460.0,0.00019178,2]
[369081597,1751461839736,-460.0,0.00019178,2]
[369081599,1751461839748,-460.0,0.00019178,2]
[369081601,1751461839759,-460.0,0.00019178,2]
[369081604,1751461839770,-460.0,0.00019178,2]
[369081606,1751461839782,-289.98155882,0.00019178,2]
[369081608,1751461839795,-460.0,0.00019178,2]
[369081610,1751461839807,-460.0,0.00019178,2]
[369081613,1751461839819,-460.0,0.00019178,2]
[369081615,1751461839831,-500.0,0.00019178,2]
[369081617,1751461839841,-500.0,0.00019178,2]
[369081619,1751461839851,-500.0,0.00019178,2]
[369081622,1751461839862,-500.0,0.00019178,2]
[369081624,1751461839876,-500.0,0.00019178,2]
[369081626,1751461839888,-500.0,0.00019178,2]
[369081628,1751461839899,-500.0,0.00019178,2]
[369081630,1751461839911,-1636.32,0.00019178,2]
[369081633,1751461839924,-460.0,0.00019178,2]
[369081635,1751461839936,-460.0,0.00019178,2]
[369081637,1751461839947,-460.0,0.00019178,2]
[369081639,1751461839959,-460.0,0.00019178,2]
[369081642,1751461839972,-214.48740558,0.00019178,2]
[369081644,1751461839985,-460.0,0.00019178,2]
[369081646,1751461839998,-460.0,0.00019178,2]
[369081649,1751461840010,-460.0,0.00019178,2]
[369081651,1751461840020,-460.0,0.00019178,2]
[369081653,1751461840031,-460.0,0.00019178,2]
[369081655,1751461840041,-460.0,0.00019178,2]
[369081657,1751461840051,-460.0,0.00019178,2]
[369081659,1751461840063,-460.0,0.00019178,2]
[369081662,1751461840076,-460.0,0.00019178,2]
[369081664,1751461840090,-460.0,0.00019178,2]
[369081666,1751461840102,-460.0,0.00019178,2]
[369081669,1751461840114,-460.0,0.00019178,2]
[369081671,1751461840124,-460.0,0.00019178,2]
[369081673,1751461840135,-459.12041124,0.00019178,2]
[369081675,1751461840146,-460.0,0.00019178,2]
[369081677,1751461840156,-460.0,0.00019178,2]
[369081680,1751461840169,-460.0,0.00019178,2]
[369081682,1751461840180,-460.0,0.00019178,2]
[369081684,1751461840192,-460.0,0.00019178,2]
[369081686,1751461840202,-460.0,0.00019178,2]
[369081688,1751461840212,-460.0,0.00019178,2]
[369081690,1751461840222,-454.17462625,0.00019178,2]
[369081693,1751461840234,-460.0,0.00019178,2]
[369081695,1751461840245,-460.0,0.00019178,2]
[369081697,1751461840256,-151.0,0.00019178,2]
[369081699,1751461840266,-460.0,0.00019178,2]
[369081701,1751461840277,-151.0,0.00019178,2]
[369081704,1751461840289,-460.0,0.00019178,2]
[369081706,1751461840300,-201.03521453,0.00019178,2]
[369081708,1751461840311,-460.0,0.00019178,2]
[369081710,1751461840323,-263.14941449,0.00019178,2]
[369081713,1751461840334,-440.0,0.00019178,2]
[369081715,1751461840345,-460.0,0.00019178,2]
[369081717,1751461840355,-462.12815698,0.00019178,2]
[369081719,1751461840366,-460.0,0.00019178,2]
[369081721,1751461840377,-460.0,0.00019178,2]
[369081724,1751461840387,-460.0,0.00019178,2]
[369081726,1751461840398,-455.62823303,0.00019178,2]
[369081728,1751461840409,-460.0,0.00019178,2]
[369081730,1751461840419,-151.0,0.00019178,2]
[369081732,1751461840430,-460.0,0.00019178,2]
[369081734,1751461840440,-293.66322788,0.00019178,2]
[369081736,1751461840451,-460.0,0.00019178,2]
[369081739,1751461840461,-460.0,0.00019178,2]
[369081741,1751461840472,-460.0,0.00019178,2]
[369081743,1751461840485,-460.0,0.00019178,2]
[369081745,1751461840497,-460.0,0.00019178,2]
[369081747,1751461840507,-500.0,0.00019178,2]
[369081749,1751461840518,-460.0,0.00019178,2]
[369081752,1751461840529,-481.46,0.00019178,2]
[369081754,1751461840539,-151.0,0.00019178,2]
[369081756,1751461840550,-460.0,0.00019178,2]
[369081758,1751461840560,-151.0,0.00019178,2]
[369081760,1751461840571,-460.0,0.00019178,2]
[369081763,1751461840582,-460.0,0.00019178,2]
[369081765,1751461840593,-460.0,0.00019178,2]
[369081767,1751461840604,-460.0,0.00019178,2]
[369081769,1751461840615,-460.0,0.00019178,2]
[369081771,1751461840625,-460.0,0.00019178,2]
[369081773,1751461840636,-460.0,0.00019178,2]
[369081776,1751461840646,-460.0,0.00019178,2]
[369081778,1751461840656,-151.0,0.00019178,2]
[369081780,1751461840667,-460.0,0.00019178,2]
[369081782,1751461840677,-460.0,0.00019178,2]
[369081784,1751461840689,-254.2608185,0.00019178,2]
[369081786,1751461840699,-151.0,0.00019178,2]
[369081789,1751461840710,-467.43372384,0.00019178,2]
[369081791,1751461840720,-460.0,0.00019178,2]
[369081792,1751461840731,-460.0,0.00019178,2]
[369081793,1751461840742,-460.0,0.00019178,2]
[369081794,1751461840753,-151.0,0.00019178,2]
[369081795,1751461840764,-460.0,0.00019178,2]
[369081796,1751461840775,-460.0,0.00019178,2]
[369081797,1751461840785,-460.0,0.00019178,2]
[369081798,1751461840796,-460.0,0.00019178,2]
[369081799,1751461840807,-460.0,0.00019178,2]
[369081800,1751461840817,-460.0,0.00019178,2]
[369081801,1751461840828,-460.0,0.00019178,2]
[369081802,1751461840839,-151.0,0.00019178,2]
[369081803,1751461840850,-460.0,0.00019178,2]
[369081804,1751461840860,-460.0,0.00019178,2]
[369081805,1751461840871,-460.0,0.00019178,2]
[369081806,1751461840886,-1562.87,0.00019178,2]
[369081808,1751461840896,-460.0,0.00019178,2]
[369081810,1751461840912,-460.0,0.00019178,2]
[369081812,1751461840924,-460.0,0.00019178,2]
[369081814,1751461840935,-1885.89,0.00019178,2]
[369081816,1751461840945,-460.0,0.00019178,2]
[369081818,1751461840956,-460.0,0.00019178,2]
[369081821,1751461840967,-460.0,0.00019178,2]
[369081823,1751461840978,-460.0,0.00019178,2]
[369081825,1751461840989,-460.0,0.00019178,2]
[369081827,1751461841000,-460.0,0.00019178,2]
[369081829,1751461841012,-151.0,0.00019178,2]
[369081832,1751461841023,-472.03175633,0.00019178,2]
[369081834,1751461841035,-879.46,0.00019178,2]
[369081836,1751461841045,-460.0,0.00019178,2]
[369081838,1751461841056,-460.0,0.00019178,2]
[369081840,1751461841068,-460.0,0.00019178,2]
[369081842,1751461841079,-347.76569123,0.00019178,2]
[369081845,1751461841091,-488.04,0.00019178,2]
[369081847,1751461841101,-460.0,0.00019178,2]
[369081849,1751461841111,-460.0,0.00019178,2]
[369081851,1751461841121,-460.0,0.00019178,2]
[369081853,1751461841131,-460.0,0.00019178,2]
[369081855,1751461841141,-460.0,0.00019178,2]
[369081857,1751461841150,-460.0,0.00019178,2]
[369081859,1751461841160,-460.0,0.00019178,2]
[369081881,1751461841353,-1449.86,0.00019178,2]
[369081884,1751461841371,-460.0,0.00019178,2]
[369081886,1751461841381,-460.0,0.00019178,2]
[369081888,1751461841390,-460.0,0.00019178,2]
[369081890,1751461841399,-468.95977601,0.00019178,2]
[369081892,1751461841408,-475.35,0.00019178,2]
[369081894,1751461841418,-648.25,0.00019178,2]
[369081896,1751461841427,-460.0,0.00019178,2]
[369081898,1751461841437,-481.37040641,0.00019178,2]
[369081900,1751461841446,-464.95034664,0.00019178,2]
[369081902,1751461841456,-2098.88,0.00019178,2]
[369081904,1751461841465,-460.0,0.00019178,2]
[369081906,1751461841474,-460.0,0.00019178,2]
[369081908,1751461841483,-460.0,0.00019178,2]
[369081910,1751461841492,-460.0,0.00019178,2]
[369081912,1751461841502,-460.0,0.00019178,2]
[369081914,1751461841511,-460.0,0.00019178,2]
[369081916,1751461841520,-460.0,0.00019178,2]
[369081918,1751461841529,-1094.42,0.00019178,2]
[369081920,1751461841538,-462.52326736,0.00019178,2]
[369081922,1751461841548,-460.0,0.00019178,2]
[369081924,1751461841558,-460.0,0.00019178,2]
[369081926,1751461841567,-460.0,0.00019178,2]
[369081928,1751461841576,-460.0,0.00019178,2]
[369081930,1751461841586,-460.0,0.00019178,2]
[369081932,1751461841595,-460.0,0.00019178,2]
[369081934,1751461841606,-460.0,0.00019178,2]
[369081936,1751461841615,-437.51017621,0.00019178,2]
[369081938,1751461841624,-1436.19,0.00019178,2]
[369081940,1751461841633,-460.0,0.00019178,2]
[369081941,1751461841642,-460.0,0.00019178,2]
[369081943,1751461841652,-460.0,0.00019178,2]
[369081945,1751461841661,-1129.54,0.00019178,2]
[369081947,1751461841671,-460.0,0.00019178,2]
[369081949,1751461841680,-460.0,0.00019178,2]
[369081951,1751461841690,-305.801339,0.00019178,2]
[369081953,1751461841700,-460.0,0.00019178,2]
[369081955,1751461841710,-305.801339,0.00019178,2]
[369081957,1751461841722,-3011.89,0.00019178,2]
[369081959,1751461841732,-460.0,0.00019178,2]
[369081961,1751461841741,-2128.17,0.00019178,2]
[369081963,1751461841751,-886.86,0.00019178,2]
[369081965,1751461841760,-460.0,0.00019178,2]
[369081967,1751461841769,-460.0,0.00019178,2]
[369081969,1751461841778,-460.0,0.00019178,2]
[369081971,1751461841788,-460.0,0.00019178,2]
[369081973,1751461841797,-410.0,0.00019178,2]
[369081975,1751461841807,-460.0,0.00019178,2]
[369081977,1751461841816,-460.0,0.00019178,2]
[369081979,1751461841825,-500.0,0.00019178,2]
[369081982,1751461841835,-500.0,0.00019178,2]
[369081984,1751461841844,-500.0,0.00019178,2]
[369081985,1751461841854,-500.0,0.00019178,2]
[369081987,1751461841863,-500.0,0.00019178,2]
[369081989,1751461841872,-460.0,0.00019178,2]
[369081991,1751461841886,-460.0,0.00019178,2]
[369081993,1751461841895,-460.0,0.00019178,2]
[369081995,1751461841904,-540.15,0.00019178,2]
[369081997,1751461841914,-460.0,0.00019178,2]
[369081999,1751461841925,-460.0,0.00019178,2]
[369082001,1751461841934,-460.0,0.00019178,2]
[369082003,1751461841944,-460.0,0.00019178,2]
[369082005,1751461841954,-460.0,0.00019178,2]
[369082007,1751461841962,-460.0,0.00019178,2]
[369082009,1751461841976,-460.0,0.00019178,2]
[369082011,1751461841986,-460.0,0.00019178,2]
[369082013,1751461841996,-269.450714,0.00019178,2]
[369082015,1751461842005,-460.0,0.00019178,2]
[369082017,1751461842014,-269.450714,0.00019178,2]
[369082019,1751461842024,-460.0,0.00019178,2]
[369082021,1751461842033,-1879.07,0.00019178,2]
[369082023,1751461842043,-460.0,0.00019178,2]